bitfinex/quotes_SOLUSD_20250406
["timestamp","ask_amount","ask_price","bid_price","bid_amount"]
[1743981671727,71.03087174,104.34,104.25,52.36421043]
[1743981671728,71.03087174,104.31,104.25,9.5916]
[1743981671928,71.03087174,104.3,104.25,9.5916]
[1743981672137,71.03087174,104.3,104.25,80.62247174]
[1743981672450,71.03087174,104.29,104.24,71.03087174]
[1743981672651,71.03087174,104.27,104.23,9.5932]
[1743981672830,0.42648471,104.32,104.23,9.5932]
[1743981673031,71.03087174,104.27,104.22,22.3927]
[1743981673243,71.03087174,104.27,104.22,93.42357174]
[1743981673461,71.03087174,104.25,104.22,12.7979]
[1743981673950,71.03087174,104.28,104.21,6.6624]
[1743981674255,71.03087174,104.22,104.15,0.26798372]
[1743981674458,71.03087174,104.22,104.15,9.86928372]
[1743981674459,71.03087174,104.19,104.15,9.86928372]
[1743981674960,71.03087174,104.22,104.17,71.03087174]
[1743981675270,71.03087174,104.2,104.15,9.6013]
[1743981675433,97.03087174,104.22,104.12,9.6043]
[1743981675633,0.42648471,104.24,104.15,71.03087174]
[1743981675878,71.03087174,104.22,104.14,71.03087174]
[1743981676161,33.5733,104.25,104.17,71.03087174]
[1743981676162,9.5925,104.25,104.17,71.03087174]
[1743981676357,9.5925,104.25,104.14,42.65404886]
[1743981676671,9.5925,104.25,104.12,0.14216157]
[1743981676672,0.14216157,104.23,104.16,71.03087174]
[1743981676855,90.7877,104.3,104.17,26.0]
[1743981677059,71.03087174,104.28,104.2,71.03087174]
[1743981677233,71.03087174,104.23,104.17,6.6983]
[1743981677430,26.0,104.25,104.19,71.03087174]
[1743981677635,71.03087174,104.22,104.17,6.6983]
[1743981677936,26.14216157,104.25,104.17,6.6983]
[1743981677937,71.03087174,104.2,104.17,6.6983]
[1743981678130,0.42648471,104.25,104.17,77.72917174]
[1743981678334,80.62507174,104.23,104.17,6.6983]
[1743981678570,9.5923,104.25,104.17,16.2977]
[1743981678759,97.03087174,104.22,104.17,6.6983]
[1743981678967,71.03087174,104.22,104.17,6.6983]
[1743981679291,9.5923,104.25,104.17,16.2977]
[1743981679434,71.03087174,104.22,104.17,16.2979]
[1743981679636,81.2,104.26,104.2,71.03087174]
[1743981679845,81.2,104.3,104.21,12.2038]
[1743981680079,71.03087174,104.27,104.21,12.2038]
[1743981680243,71.03087174,104.26,104.21,83.23467174]
[1743981680764,18.64964886,104.31,104.22,71.03087174]
[1743981680765,9.5868,104.31,104.22,71.03087174]
[1743981681004,71.03087174,104.29,104.22,18.64964886]
[1743981681142,71.03087174,104.32,104.27,71.03087174]
[1743981681343,0.14216157,104.35,104.24,6.7837]
[1743981681539,71.03087174,104.31,104.24,6.7837]
[1743981681763,33.5409,104.35,104.28,71.03087174]
[1743981681764,9.5831,104.35,104.28,71.03087174]
[1743981682077,71.03087174,104.32,104.25,18.64964886]
[1743981682252,71.03087174,104.32,104.24,6.7837]
[1743981682456,71.03087174,104.32,104.27,71.03087174]
[1743981682650,71.03087174,104.3,104.24,6.7837]
[1743981682848,71.03087174,104.28,104.24,6.7837]
[1743981683067,0.28432314,104.29,104.24,6.7837]
[1743981683279,71.03087174,104.27,104.24,6.7837]
[1743981683436,71.03087174,104.26,104.24,6.7837]
[1743981683759,71.03087174,104.26,104.21,83.23467174]
[1743981683962,71.03087174,104.28,104.23,71.03087174]
[1743981684177,0.28432314,104.29,104.22,71.03087174]
[1743981684470,71.03087174,104.27,104.22,71.03087174]
[1743981684664,9.5877,104.3,104.24,71.03087174]
[1743981684879,71.03087174,104.28,104.23,71.03087174]
[1743981685245,9.5868,104.31,104.25,71.03087174]
[1743981685440,71.03087174,104.26,104.21,12.2038]
[1743981685752,71.03087174,104.23,104.19,7.1118]
[1743981685981,0.28432314,104.27,104.2,71.03087174]
[1743981686148,71.03087174,104.26,104.21,71.03087174]
[1743981686354,81.2,104.29,104.23,71.03087174]
[1743981686546,71.03087174,104.26,104.21,71.03087174]
[1743981686765,71.03087174,104.25,104.19,16.7095]
[1743981686946,71.03087174,104.25,104.2,71.03087174]
[1743981687146,9.592,104.26,104.19,16.7096]
[1743981687491,71.03087174,104.25,104.19,7.1118]
[1743981687693,71.03087174,104.25,104.2,71.03087174]
[1743981687980,71.03087174,104.25,104.17,12.8629]
[1743981687981,71.03087174,104.22,104.17,12.8629]
[1743981688184,0.14216157,104.23,104.14,6.8719]
[1743981688350,71.03087174,104.21,104.14,6.8719]
[1743981688551,71.03087174,104.19,104.14,77.90277174]
[1743981688757,71.03087174,104.17,104.14,6.8719]
[1743981689162,71.17303331,104.16,104.12,0.03]
[1743981689354,71.31519488,104.15,104.12,0.03]
[1743981689557,0.42648471,104.17,104.12,0.03]
[1743981689773,0.42648471,104.1,104.01,9.6137]
[1743981689963,401.0694,104.18,104.06,71.03087174]
[1743981690167,0.14216157,104.13,104.01,33.6498]
[1743981690392,71.03087174,104.08,104.01,9.6137]
[1743981690569,71.03087174,104.07,104.02,71.03087174]
[1743981690883,71.03087174,104.04,104.0,61.14614615]
[1743981691047,19.07613357,104.06,104.0,61.14614615]
[1743981691390,9.6092,104.07,104.0,61.14614615]
[1743981691689,71.03087174,104.03,104.0,61.14614615]
[1743981691983,0.28432314,104.04,104.0,61.14614615]
[1743981692188,97.03087174,104.01,104.0,61.14614615]
[1743981692411,108.58617719,104.06,104.0,36.94984615]
[1743981692567,20.64,104.05,104.0,36.94984615]
[1743981692903,9.611,104.05,104.0,36.94984615]
[1743981693272,71.03087174,104.03,104.0,36.94984615]
[1743981693477,71.03087174,104.02,104.0,36.94984615]
[1743981693671,9.611,104.05,104.0,36.94984615]
[1743981693866,27.38617719,104.06,104.0,46.56474615]
[1743981694095,27.38617719,104.06,104.03,71.03087174]
[1743981694409,71.03087174,104.04,104.0,36.94984615]
[1743981694611,71.03087174,104.01,104.0,36.94984615]
[1743981694778,80.64527174,104.01,104.0,36.94984615]
[1743981694978,9.6144,104.01,104.0,36.94984615]
[1743981695200,80.64527174,104.01,104.0,36.94984615]
[1743981695497,99.2949206,104.01,104.0,4.615e-05]
[1743981695867,9.6144,104.01,104.0,4.615e-05]
[1743981696071,99.2949206,104.01,104.0,4.615e-05]
[1743981696378,9.6144,104.01,103.9,40.64853333]
[1743981696792,101.88,104.03,103.98,71.03087174]
[1743981696996,71.03087174,104.01,103.93,29.56679103]
[1743981697311,71.03087174,104.02,103.96,71.03087174]
[1743981697617,101.32347174,104.03,103.97,71.03087174]
[1743981697775,101.32347174,104.03,103.93,53.62139103]
[1743981697776,20.68,104.03,103.99,71.03087174]
[1743981698112,71.03087174,104.02,103.94,18.64964886]
[1743981698416,71.03087174,103.98,103.93,1.29594217]
[1743981698708,9.62,103.95,103.93,1.29594217]
[1743981698879,71.03087174,103.94,103.93,1.29594217]
[1743981699076,71.03087174,103.94,103.93,4.217e-05]
[1743981699296,241.91139234,103.94,103.9,33.33333333]
[1743981699499,97.03087174,103.91,103.9,3.333e-05]
[1743981699700,81.2,103.93,103.9,3.333e-05]
[1743981699933,20.7,103.94,103.9,3.333e-05]
[1743981700127,71.03087174,103.93,103.9,3.333e-05]
[1743981700412,20.7,103.94,103.9,3.333e-05]
[1743981700714,80.65457174,103.91,103.9,3.333e-05]
[1743981700920,20.7,103.94,103.9,3.333e-05]
[1743981701106,24.0441,103.98,103.91,71.03087174]
[1743981701306,9.6172,103.98,103.9,3.333e-05]
[1743981701532,18.64964886,103.97,103.9,3.333e-05]
[1743981701828,71.03087174,103.92,103.9,3.333e-05]
[1743981702020,253.97717174,103.98,103.9,3.333e-05]
[1743981702223,71.03087174,103.96,103.91,71.03087174]
[1743981702542,71.03087174,104.01,103.91,20.78106463]
[1743981702745,33.6441,104.03,103.92,28.27194886]
[1743981702907,71.03087174,103.94,103.91,19.0213]
[1743981703106,26.0,103.95,103.91,6.9958]
[1743981703328,97.03087174,103.95,103.91,6.9958]
[1743981703556,162.5555,104.03,103.91,78.02667174]
[1743981703722,71.03087174,104.0,103.94,71.03087174]
[1743981703911,71.03087174,104.01,103.92,89.6805206]
[1743981704110,80.64277174,104.04,103.99,71.03087174]
[1743981704305,9.6119,104.04,103.97,71.03087174]
[1743981704506,9.6119,104.04,103.96,12.5178]
[1743981704705,80.64417174,104.03,103.98,71.03087174]
[1743981704930,81.2,104.05,103.98,71.03087174]
[1743981704931,81.2,104.05,104.02,71.03087174]
[1743981705228,27.38617719,104.06,104.04,71.03087174]
[1743981705433,27.38617719,104.06,104.05,71.03087174]
[1743981705621,27.44917719,104.06,104.05,71.03087174]
[1743981705821,20.06727719,104.06,104.05,71.03087174]
[1743981706221,0.063,104.12,104.06,13.2589]
[1743981706423,0.063,104.12,104.09,71.03087174]
[1743981706814,97.03087174,104.1,104.02,7.3735]
[1743981707133,0.14216157,104.09,104.01,12.832]
[1743981707335,0.14216157,104.1,104.05,71.03087174]
[1743981707543,81.2,104.11,104.07,71.03087174]
[1743981707731,0.063,104.12,104.08,71.03087174]
[1743981707926,0.063,104.12,104.1,71.03087174]
[1743981708116,71.09387174,104.12,104.04,71.03087174]
[1743981708316,71.09387174,104.12,104.06,71.03087174]
[1743981708526,71.03087174,104.08,104.01,12.832]
[1743981708735,9.6107,104.05,104.0,71.03087174]
[1743981708922,9.6107,104.05,103.96,19.3658]
[1743981709125,71.03087174,104.03,103.98,71.03087174]
[1743981709436,71.03087174,104.04,103.99,71.03087174]
[1743981709613,71.03087174,104.03,103.96,19.3658]
[1743981709920,71.03087174,104.04,103.99,71.03087174]
[1743981710127,80.64157174,104.05,103.99,71.03087174]
[1743981710329,80.64157174,104.05,104.0,71.03087174]
[1743981710522,71.03087174,104.01,103.91,20.3617]
[1743981710725,9.6153,104.0,103.95,71.03087174]
[1743981710927,80.64617174,104.0,103.95,71.03087174]
[1743981711219,9.6147,104.01,103.92,80.65347174]
[1743981711420,71.03087174,104.0,103.91,20.3617]
[1743981711625,71.03087174,103.98,103.92,71.03087174]
[1743981711839,71.03087174,103.99,103.93,71.03087174]
[1743981712038,59.93512314,104.01,103.95,71.03087174]
[1743981712211,130.68167174,104.01,103.95,71.03087174]
[1743981712416,71.03087174,104.0,103.93,18.64964886]
[1743981712743,33.6442,104.03,103.93,18.64964886]
[1743981713038,24.0156,104.1,104.03,18.64964886]
[1743981713222,9.6052,104.11,104.04,71.03087174]
[1743981713422,9.6052,104.11,104.07,71.03087174]
[1743981713642,9.6052,104.11,104.08,71.03087174]
[1743981714059,9.6052,104.11,104.05,18.64964886]
[1743981714236,9.6676,104.12,104.04,71.03087174]
[1743981714549,9.6676,104.12,104.06,71.03087174]
[1743981714716,9.6676,104.12,104.09,71.03087174]
[1743981714717,0.063,104.12,104.09,71.03087174]
[1743981715144,0.063,104.12,104.07,9.608]
[1743981715145,0.063,104.12,104.1,71.03087174]
[1743981715449,0.063,104.12,104.05,28.40251043]
[1743981715633,0.063,104.12,104.05,28.26034886]
[1743981715940,0.063,104.12,104.09,71.03087174]
[1743981716140,0.063,104.12,104.05,28.40251043]
[1743981716456,0.063,104.12,104.11,71.03087174]
[1743981716639,0.063,104.12,104.1,71.03087174]
[1743981717334,0.063,104.12,104.06,18.64964886]
[1743981717553,0.063,104.12,104.08,71.03087174]
[1743981717851,71.03087174,104.1,104.01,18.9035]
[1743981718151,71.03087174,104.08,104.01,18.9035]
[1743981718448,71.03087174,104.06,103.98,71.03087174]
[1743981718654,71.03087174,104.06,104.01,71.03087174]
[1743981718830,0.063,104.12,104.03,71.03087174]
[1743981719144,71.03087174,104.1,104.05,71.03087174]
[1743981719329,71.03087174,104.11,104.05,71.03087174]
[1743981719530,33.678,104.12,104.07,71.03087174]
[1743981719925,0.063,104.12,104.1,71.03087174]
[1743981720127,0.063,104.12,104.07,18.64964886]
[1743981720454,0.063,104.12,104.1,71.03087174]
[1743981720749,0.063,104.12,104.08,0.14216157]
[1743981721057,0.063,104.12,104.11,89.6805206]
[1743981721831,0.063,104.12,104.11,99.42788217]
[1743981722033,0.063,104.17,104.12,0.14216157]
[1743981722227,0.063,104.17,104.16,71.03087174]
[1743981722867,33.5699,104.26,104.17,18.79181043]
[1743981723024,9.5914,104.26,104.17,28.24894886]
[1743981723227,33.5699,104.26,104.23,71.03087174]
[1743981723528,33.5699,104.26,104.18,0.14216157]
[1743981723529,33.5699,104.26,104.18,19.07613357]
[1743981723753,33.5699,104.26,104.16,80.77343331]
[1743981724066,9.5914,104.26,104.19,18.64964886]
[1743981724226,9.5914,104.26,104.24,71.03087174]
[1743981724423,9.5914,104.26,104.19,18.64964886]
[1743981724424,23.9692,104.31,104.25,71.03087174]
[1743981724627,71.03087174,104.32,104.27,71.03087174]
[1743981724841,71.03087174,104.31,104.26,71.03087174]
[1743981725040,9.5877,104.3,104.27,71.03087174]
[1743981725355,9.5877,104.3,104.23,0.14216157]
[1743981725529,9.5877,104.3,104.28,71.03087174]
[1743981725728,94.99117174,104.34,104.29,71.03087174]
[1743981726069,23.9603,104.34,104.3,71.03087174]
[1743981726349,23.9603,104.34,104.24,31.74311043]
[1743981726557,0.14216157,104.33,104.24,12.9513]
[1743981726735,71.03087174,104.28,104.23,71.03087174]
[1743981727066,71.03087174,104.28,104.2,31.60094886]
[1743981727067,71.03087174,104.25,104.17,6.8869]
[1743981727246,71.03087174,104.24,104.19,71.03087174]
[1743981727433,33.5666,104.27,104.23,71.03087174]
[1743981727755,104.59747174,104.27,104.22,71.03087174]
[1743981727933,71.03087174,104.25,104.2,71.03087174]
[1743981728329,71.03087174,104.24,104.16,71.03087174]
[1743981728563,71.03087174,104.25,104.16,71.03087174]
[1743981728726,71.03087174,104.23,104.18,71.03087174]
[1743981728929,33.5731,104.25,104.19,71.03087174]
[1743981729127,71.03087174,104.24,104.17,18.64964886]
[1743981729326,71.03087174,104.24,104.19,71.03087174]
[1743981729746,71.03087174,104.24,104.16,18.64964886]
[1743981729957,71.03087174,104.22,104.17,71.03087174]
[1743981730177,71.03087174,104.2,104.15,71.03087174]
[1743981730336,71.03087174,104.19,104.12,7.3123]
[1743981730532,19.58,104.23,104.15,71.03087174]
[1743981730746,19.58,104.23,104.18,71.03087174]
[1743981731069,19.58,104.23,104.19,71.03087174]
[1743981731070,9.595,104.22,104.19,71.03087174]
[1743981731231,71.03087174,104.21,104.13,0.14216157]
[1743981731433,9.595,104.22,104.17,71.03087174]
[1743981731634,80.62587174,104.22,104.17,71.03087174]
[1743981731836,104.61357174,104.22,104.17,71.03087174]
[1743981732058,104.61357174,104.22,104.12,7.3123]
[1743981732059,71.03087174,104.2,104.12,7.3123]
[1743981732234,71.03087174,104.19,104.14,71.03087174]
[1743981732554,185.81357174,104.22,104.17,71.03087174]
[1743981732762,114.7827,104.22,104.18,71.03087174]
[1743981732931,114.7827,104.22,104.12,41.21132314]
[1743981732932,185.81357174,104.22,104.12,16.9163]
[1743981733127,71.03087174,104.19,104.14,71.03087174]
[1743981733347,71.03087174,104.17,104.12,71.03087174]
[1743981733752,71.03087174,104.16,104.11,71.03087174]
[1743981734132,71.03087174,104.16,104.07,16.9682]
[1743981734133,81.2,104.2,104.14,71.03087174]
[1743981734332,71.03087174,104.23,104.18,71.03087174]
[1743981734549,90.7938,104.24,104.16,78.08757174]
[1743981734550,9.5938,104.24,104.16,78.08757174]
[1743981734750,33.5769,104.24,104.2,71.03087174]
[1743981734949,9.5938,104.24,104.22,71.03087174]
[1743981735132,9.5914,104.26,104.21,71.03087174]
[1743981735332,9.5914,104.26,104.22,71.03087174]
[1743981735557,9.5914,104.26,104.23,71.03087174]
[1743981735765,9.5914,104.26,104.24,71.03087174]
[1743981736086,33.567,104.27,104.19,0.14216157]
[1743981736258,33.567,104.27,104.23,71.03087174]
[1743981736464,104.59787174,104.27,104.22,71.03087174]
[1743981736959,104.59787174,104.27,104.23,71.03087174]
[1743981737148,9.5908,104.27,104.24,71.03087174]
[1743981737557,9.5877,104.3,104.26,71.03087174]
[1743981737854,33.5441,104.34,104.29,71.03087174]
[1743981738055,33.5441,104.34,104.31,71.03087174]
[1743981738056,9.584,104.34,104.31,71.03087174]
[1743981738261,9.584,104.34,104.32,71.03087174]
[1743981738570,9.5812,104.37,104.33,71.03087174]
[1743981738754,28.8226,104.39,104.36,71.03087174]
[1743981739154,9.6428,104.39,104.38,71.03087174]
[1743981739364,0.063,104.39,104.37,71.03087174]
[1743981739563,9.6425,104.39,104.36,71.03087174]
[1743981739754,0.063,104.39,104.38,71.03087174]
[1743981740157,0.063,104.39,104.37,71.03087174]
[1743981740468,9.643,104.39,104.37,71.03087174]
[1743981740665,0.063,104.39,104.38,71.03087174]
[1743981740861,9.6424,104.39,104.34,89.6805206]
[1743981741064,0.063,104.39,104.35,28.23264886]
[1743981741569,0.063,104.39,104.38,71.03087174]
[1743981741882,0.063,104.39,104.32,0.28432314]
[1743981741883,71.09387174,104.39,104.27,0.14216157]
[1743981742174,26.0,104.36,104.31,71.03087174]
[1743981742365,26.0,104.36,104.32,71.03087174]
[1743981742572,97.03087174,104.37,104.32,71.03087174]
[1743981742758,71.03087174,104.34,104.29,71.03087174]
[1743981743071,33.5441,104.34,104.25,7.2611]
[1743981743286,33.5441,104.34,104.27,71.03087174]
[1743981743287,71.03087174,104.32,104.27,71.03087174]
[1743981743679,97.03087174,104.31,104.26,71.03087174]
[1743981743891,33.5441,104.34,104.27,71.03087174]
[1743981744052,104.57497174,104.34,104.29,71.03087174]
[1743981744252,104.57497174,104.34,104.23,0.14216157]
[1743981744253,71.03087174,104.32,104.23,18.79181043]
[1743981744569,33.5441,104.34,104.28,71.03087174]
[1743981744888,33.5441,104.34,104.3,71.03087174]
[1743981745196,9.584,104.34,104.3,71.03087174]
[1743981745355,71.03087174,104.33,104.24,9.5932]
[1743981745676,71.03087174,104.33,104.28,71.03087174]
[1743981745850,71.03087174,104.32,104.27,71.03087174]
[1743981746249,71.03087174,104.33,104.28,71.03087174]
[1743981746651,71.03087174,104.33,104.24,18.64964886]
[1743981746883,71.03087174,104.32,104.27,71.03087174]
[1743981747105,9.584,104.34,104.29,71.03087174]
[1743981747254,9.584,104.34,104.3,71.03087174]
[1743981747654,9.584,104.34,104.31,71.03087174]
[1743981747975,71.03087174,104.33,104.23,28.24374886]
[1743981748174,33.5441,104.34,104.29,71.03087174]
[1743981748391,9.584,104.34,104.31,71.03087174]
[1743981748564,9.584,104.34,104.26,18.64964886]
[1743981748881,9.5834,104.35,104.31,71.03087174]
[1743981749079,9.5812,104.37,104.33,71.03087174]
[1743981749280,104.56527174,104.37,104.32,71.03087174]
[1743981749461,104.56527174,104.37,104.28,89.82268217]
[1743981749462,71.03087174,104.36,104.31,71.03087174]
[1743981749668,33.5344,104.37,104.31,71.03087174]
[1743981749858,71.03087174,104.36,104.31,71.03087174]
[1743981750054,71.03087174,104.35,104.26,28.38281043]
[1743981750262,71.03087174,104.34,104.29,71.03087174]
[1743981750468,81.2,104.36,104.3,71.03087174]
[1743981750666,71.03087174,104.35,104.3,71.03087174]
[1743981750961,71.03087174,104.34,104.29,71.03087174]
[1743981751270,80.61577174,104.33,104.24,0.14216157]
[1743981751480,80.61577174,104.33,104.28,71.03087174]
[1743981751481,9.5849,104.33,104.28,71.03087174]
[1743981751682,9.5831,104.35,104.29,71.03087174]
[1743981751885,9.5831,104.35,104.3,71.03087174]
[1743981752405,9.5823,104.36,104.32,71.03087174]
[1743981752690,104.56867174,104.36,104.31,71.03087174]
[1743981752896,104.56867174,104.36,104.25,33.5731]
[1743981752897,71.03087174,104.32,104.21,9.596]
[1743981753188,26.0,104.33,104.25,71.03087174]
[1743981753189,26.0,104.31,104.25,71.03087174]
[1743981753396,9.5877,104.3,104.26,71.03087174]
[1743981753561,9.5868,104.31,104.28,71.03087174]
[1743981753877,9.5863,104.32,104.28,71.03087174]
[1743981754784,104.58187174,104.32,104.26,71.03087174]
[1743981754980,80.61717174,104.32,104.27,71.03087174]
[1743981755188,47.9066,104.37,104.3,71.03087174]
[1743981755377,94.98667174,104.36,104.31,71.03087174]
[1743981755869,71.03087174,104.35,104.3,71.03087174]
[1743981756062,71.03087174,104.34,104.26,9.5914]
[1743981756256,71.03087174,104.34,104.28,71.03087174]
[1743981756487,71.03087174,104.34,104.3,71.03087174]
[1743981756682,71.03087174,104.35,104.3,71.03087174]
[1743981757061,71.03087174,104.35,104.27,18.64964886]
[1743981757062,94.98667174,104.36,104.31,71.03087174]
[1743981757358,71.03087174,104.35,104.27,28.23934886]
[1743981757581,71.03087174,104.35,104.3,71.03087174]
[1743981758160,104.56887174,104.36,104.3,71.03087174]
[1743981758479,33.538,104.36,104.3,71.03087174]
[1743981758684,71.03087174,104.35,104.3,71.03087174]
[1743981758885,71.03087174,104.35,104.27,28.23934886]
[1743981758886,104.56887174,104.36,104.31,71.03087174]
[1743981759490,9.5803,104.38,104.33,71.03087174]
[1743981759689,0.063,104.39,104.35,71.03087174]
[1743981759690,9.6427,104.39,104.35,71.03087174]
[1743981759982,9.6427,104.39,104.32,0.14216157]
[1743981760180,9.6427,104.39,104.35,71.03087174]
[1743981760888,9.6427,104.39,104.36,71.03087174]
[1743981761184,0.063,104.39,104.37,71.03087174]
[1743981761383,0.063,104.39,104.38,71.03087174]
[1743981762286,0.063,104.39,104.35,28.23234886]
[1743981762464,0.063,104.39,104.38,71.03087174]
[1743981763170,0.063,104.39,104.33,9.5847]
[1743981763377,0.063,104.39,104.35,71.03087174]
[1743981763567,71.09387174,104.39,104.31,28.37861043]
[1743981763895,71.03087174,104.37,104.32,71.03087174]
[1743981764396,71.03087174,104.34,104.27,9.5904]
[1743981764596,71.03087174,104.36,104.31,71.03087174]
[1743981764794,71.03087174,104.36,104.28,71.03087174]
[1743981765303,71.03087174,104.36,104.31,71.03087174]
[1743981765461,9.5831,104.35,104.31,71.03087174]
[1743981766000,104.57177174,104.35,104.3,71.03087174]
[1743981766159,33.5409,104.35,104.25,9.5923]
[1743981766365,71.03087174,104.32,104.27,71.03087174]
[1743981766667,71.03087174,104.31,104.26,71.03087174]
[1743981767084,71.03087174,104.29,104.24,71.03087174]
[1743981767293,71.03087174,104.28,104.21,9.5952]
[1743981767462,71.03087174,104.28,104.22,71.03087174]
[1743981767463,80.62127174,104.27,104.22,71.03087174]
[1743981767663,80.61947174,104.29,104.24,71.03087174]
[1743981767866,9.5886,104.29,104.25,71.03087174]
[1743981768067,33.5602,104.29,104.21,18.79181043]
[1743981768285,9.5878,104.3,104.26,71.03087174]
[1743981768683,9.5873,104.31,104.27,71.03087174]
[1743981769106,9.5862,104.32,104.28,71.03087174]
[1743981769304,90.7854,104.33,104.29,71.03087174]
[1743981769599,104.57867174,104.33,104.28,71.03087174]
[1743981769778,9.5844,104.34,104.3,71.03087174]
[1743981770106,80.61527174,104.34,104.26,18.79181043]
[1743981770299,9.5844,104.34,104.29,71.03087174]
[1743981770674,71.03087174,104.37,104.32,71.03087174]
[1743981770884,9.5812,104.37,104.32,71.03087174]
[1743981771172,9.5812,104.37,104.34,71.03087174]
[1743981771374,0.063,104.39,104.35,71.03087174]
[1743981771905,0.063,104.39,104.33,9.5841]
[1743981771906,9.6429,104.39,104.34,71.03087174]
[1743981772219,0.063,104.39,104.36,71.03087174]
[1743981772505,80.67347174,104.39,104.31,9.72856157]
[1743981772671,71.03087174,104.37,104.3,9.5877]
[1743981772868,97.03087174,104.36,104.3,71.03087174]
[1743981773081,71.03087174,104.35,104.3,71.03087174]
[1743981773277,71.03087174,104.32,104.24,9.5932]
[1743981773466,0.14216157,104.37,104.22,93.31807174]
[1743981773467,71.03087174,104.3,104.22,93.31807174]
[1743981773667,33.5538,104.31,104.26,71.03087174]
[1743981773893,104.58467174,104.31,104.26,71.03087174]
[1743981774093,9.5868,104.31,104.27,71.03087174]
[1743981774296,106.1031,104.36,104.29,71.03087174]
[1743981774485,106.1031,104.36,104.25,26.0]
[1743981774486,71.03087174,104.33,104.25,26.0]
[1743981774670,71.03087174,104.32,104.27,71.03087174]
[1743981775294,33.5409,104.35,104.28,71.03087174]
[1743981775512,71.03087174,104.34,104.28,71.03087174]
[1743981775713,9.5831,104.35,104.32,71.03087174]
[1743981776226,33.5409,104.35,104.28,71.03087174]
[1743981776411,33.5409,104.35,104.31,71.03087174]
[1743981776730,33.5409,104.35,104.28,71.03087174]
[1743981776731,9.5831,104.35,104.32,71.03087174]
[1743981776898,9.5826,104.36,104.32,71.03087174]
[1743981777921,9.5812,104.37,104.33,71.03087174]
[1743981778815,105.2122,104.39,104.3,33.557]
[1743981779019,9.5807,104.38,104.34,71.03087174]
[1743981779810,80.61157174,104.38,104.33,71.03087174]
[1743981780016,71.03087174,104.36,104.28,71.03087174]
[1743981780221,71.03087174,104.36,104.31,71.03087174]
[1743981780396,33.5316,104.38,104.28,9.5895]
[1743981780592,71.03087174,104.36,104.31,71.03087174]
[1743981780791,71.03087174,104.36,104.28,80.62037174]
[1743981780792,71.03087174,104.37,104.32,71.03087174]
[1743981781036,104.56247174,104.38,104.33,71.03087174]
[1743981781214,71.03087174,104.37,104.32,71.03087174]
[1743981781895,9.5812,104.37,104.29,18.64964886]
[1743981782100,80.61207174,104.37,104.32,71.03087174]
[1743981782304,104.56527174,104.37,104.29,18.64964886]
[1743981782501,33.5344,104.37,104.27,9.59]
[1743981782703,33.5344,104.37,104.31,71.03087174]
[1743981782932,9.5807,104.38,104.33,71.03087174]
[1743981783132,80.61157174,104.38,104.29,18.79181043]
[1743981783298,71.03087174,104.36,104.28,71.03087174]
[1743981783498,71.03087174,104.32,104.21,6.9367]
[1743981783739,71.03087174,104.32,104.28,71.03087174]
[1743981783911,81.62648471,104.37,104.29,71.03087174]
[1743981783912,71.03087174,104.34,104.29,71.03087174]
[1743981784107,71.03087174,104.34,104.3,71.03087174]
[1743981784314,71.03087174,104.33,104.26,9.5914]
[1743981784517,71.03087174,104.33,104.28,71.03087174]
[1743981785022,71.03087174,104.34,104.29,71.03087174]
[1743981785225,71.03087174,104.33,104.26,9.5914]
[1743981785526,71.03087174,104.28,104.22,9.5949]
[1743981785726,71.03087174,104.28,104.23,71.03087174]
[1743981786038,81.2,104.32,104.19,9.5978]
[1743981786039,71.03087174,104.26,104.19,9.5978]
[1743981786223,71.03087174,104.22,104.16,7.2483]
[1743981786396,71.03087174,104.2,104.15,71.03087174]
[1743981786735,71.03087174,104.21,104.13,12.9421]
[1743981786901,71.03087174,104.21,104.16,71.03087174]
[1743981787107,83.69177174,104.24,104.19,71.03087174]
[1743981787330,98.42432314,104.27,104.2,71.03087174]
[1743981787632,98.14,104.27,104.22,71.03087174]
[1743981787806,71.03087174,104.26,104.17,0.28432314]
[1743981788131,71.03087174,104.24,104.17,9.5993]
[1743981788337,0.14216157,104.21,104.12,0.03]
[1743981788534,81.2,104.23,104.15,71.03087174]
[1743981788842,71.03087174,104.22,104.12,33.6447]
[1743981789138,71.03087174,104.2,104.15,71.03087174]
[1743981789344,71.03087174,104.21,104.15,71.03087174]
[1743981789508,0.42648471,104.23,104.16,71.03087174]
[1743981789708,71.03087174,104.21,104.16,71.03087174]
[1743981789896,9.5969,104.2,104.15,71.03087174]
[1743981790102,9.5963,104.21,104.17,71.03087174]